Cogmind - Beta 16 @@@ ROGUE MODE // 2025.11.13 @ 03:34:54 Player: souux Result: Destroyed by S-27 Virus with Autogun Performance ------------- Evolutions (3) 1500 Regions Visited (8) 1600 Robots Destroyed (65) 325 Value Destroyed (1618) 1618 Prototype IDs (26) 520 Alien Tech Used (0) 0 Bonus (300) 300 TOTAL SCORE: 5863 Bonus ------- Aligned with FarCom 300 Cogmind --------- Core Integrity 0/700 Matter 34/300 Energy 99/100 System Corruption 21% Temperature Cool (0) Movement Core (50) Location -7/Factory Parts ------- > --- POWER (1) -------- (None) > --- PROPULSION (5) --- (None) > --- UTILITY (5) ------ (None) > --- WEAPON (2) ------- (None) > --- INVENTORY (5) ---- Improved Signal Interpreter Improved Light Armor Plating Guided Plasma Cannon Advanced EMP Blaster Great Axe Peak State ------------ > --- POWER ------------ Improved Ion Engine > --- PROPULSION ------- Light Treads Light Treads Light Treads Light Treads Light Treads > --- UTILITY ---------- Improved Cooling System High-capacity Storage Unit Machine Analyzer Improved Targeting Computer Hardened Medium Armor Plating > --- WEAPON ----------- Guided Plasma Cannon Gauss Rifle > --- INVENTORY -------- Light Deuterium Engine Light Treads Light Treads Improved Treads Improved Treads Improved Treads Improved Treads Improved Treads Advanced Treads Advanced Treads Cooling System High-capacity Matter Pod Improved Signal Interpreter Improved Light Armor Plating Shield Generator Gatling Laser Heavy Particle Cannon Gauss Rifle Advanced EMP Blaster Great Axe [Rating: 37] Favorites ----------- Power Improved Ion Engine Engine Improved Ion Engine Propulsion Light Treads Treads Light Treads Wheel Wheel Flight Unit Cesium-ion Thruster Utility High-capacity Storage Unit Device Seismic Detector Storage High-capacity Storage Unit Processor Improved Targeting Computer Hackware Hacking Suite Protection Improved Light Armor Plating Weapon Autogun Energy Gun Precision Beam Rifle Energy Cannon Guided Plasma Cannon Ballistic Gun Autogun Launcher Advanced EMP Blaster Slashing Weapon Great Axe Build | -11 -10 -10 -10 -9 -8 -7 -7 -7 ------- Run | Yrd Mat Min Exi Min Mat Fac Was Fac Slots Evolved 6 | . . . . . 4 2 . . Power . | . . . . . . . . . Propulsion 3 | . . . . . 2 1 . . Utility 3 | . . . . . 2 1 . . Weapon . | . . . . . . . . . Parts Attached 77 | 9 14 7 1 . 30 7 5 4 Power 7 | 1 2 1 . . 3 . . . Engine 7 | 1 2 1 . . 3 . . . Core . | . . . . . . . . . Reactor . | . . . . . . . . . Propulsion 27 | 3 4 3 . . 11 1 4 1 Treads 20 | . 2 2 . . 11 1 4 . Leg . | . . . . . . . . . Wheel 6 | 3 2 1 . . . . . . Hover . | . . . . . . . . . Flight 1 | . . . . . . . . 1 Utility 23 | 3 6 2 1 . 5 3 . 3 Device 11 | 2 5 1 . . 1 2 . . Storage 3 | 1 1 . 1 . . . . . Processor 5 | . . . . . 2 1 . 2 Hackware 1 | . . . . . . . . 1 Protection 3 | . . 1 . . 2 . . . Artifact . | . . . . . . . . . Weapon 20 | 2 2 1 . . 11 3 1 . Energy Gun 8 | 1 . . . . 6 1 . . Energy Cannon 2 | . . . . . 2 . . . Ballistic Gun 7 | 1 2 1 . . 1 1 1 . Ballistic Cannon . | . . . . . . . . . Launcher 1 | . . . . . 1 . . . Special Weapon . | . . . . . . . . . Impact Weapon . | . . . . . . . . . Slashing Weapon 2 | . . . . . 1 1 . . Piercing Weapon . | . . . . . . . . . Special Melee Weapon . | . . . . . . . . . Unidentified Prototypes 3 | . . . . . 3 . . . Parts Lost 16 | . . 1 . . 1 . 8 6 Power . | . . . . . . . . . Propulsion 11 | . . . . . 1 . 6 4 Utility 4 | . . 1 . . . . 1 2 Weapon 1 | . . . . . . . 1 . Highest Loss Streak 6 | . . 1 . . 1 . 6 3 To Critical Strikes . | . . . . . . . . . Average Backups 17 | 5 18 19 20 20 19 18 8 4 Power 1 | . 1 1 1 1 1 1 . . Propulsion 9 | 3 12 11 11 10 9 9 1 . Utility 2 | . 2 3 3 3 2 4 2 2 Weapon 4 | . 2 3 4 5 5 4 3 2 Tool/Special . | . . . . . . . . . Unused Backups 25 | . 6 4 1 . 7 . 6 1 Power 3 | . . . . . 2 . 1 . Propulsion 11 | . 4 3 1 . . . 3 . Utility 3 | . 1 . . . . . 1 1 Weapon 8 | . 1 1 . . 5 . 1 . Tool/Special . | . . . . . . . . . Average Slot Usage (%) 94 | . 99 100 100 100 99 99 68 38 Engine 10 | . 14 14 14 14 9 7 1 . Treads 20 | . 8 9 . . 35 38 33 14 Wheel 9 | . 19 18 28 28 . . . . Device 10 | . 14 10 14 14 10 3 5 4 Storage 10 | . 14 14 14 14 9 7 2 . Processor 5 | . . . . . 7 18 15 17 Protection 4 | . . 3 . . 8 7 2 . Energy Gun 7 | . 4 . . . 15 4 . . Ballistic Gun 13 | . 23 28 28 28 2 7 4 . Peak Build Rating 37 | 9 13 15 13 13 31 35 37 18 Average Rating 18 | 5 10 12 13 13 25 31 23 13 On Entrance 14 | . 7 12 13 13 13 28 33 15 Avg Prop Armor Cover (%) 38 | . . . . . . . 41 35 Naked Turns 58 | . . . . . . . . 58 Heaviest Build 71 | 14 53 56 54 54 66 65 71 6 Greatest Support 111 | 26 40 40 20 20 80 100 111 69 Greatest Overweight (x) 5 | 1 2 2 2 2 5 . 1 1 Average Overweight (x) . | . 1 1 2 2 . . . . Largest Inventory Capacity 20 | 8 20 20 20 20 20 20 20 5 Average Capacity 18 | 7 19 20 20 20 20 20 9 5 Most Carried 20 | 8 20 20 20 20 20 20 20 5 Average Carried 17 | 5 18 19 19 19 19 18 7 4 Final Capacity 20 | 8 20 20 20 20 20 20 5 5 Final Carried 20 | 8 20 20 20 20 20 20 5 5 Class Distribution -------------------- 64% | Mutant 35% | Scavenger-Mutant Dominant Class ---------------- Mutant | -10/Materials Mutant | -10/Mines Mutant | -10/Exiles Mutant | -9/Mines Scavenger-Mutant | -8/Materials Scavenger-Mutant | -7/Factory Mutant | -7/Waste Mutant | -7/Factory Resources | -11 -10 -10 -10 -9 -8 -7 -7 -7 ----------- Run | Yrd Mat Min Exi Min Mat Fac Was Fac Matter Collected 1668 | 320 354 193 60 79 588 74 . . Remotely . | . . . . . . . . . Salvage Created 2486 | 175 380 175 . 49 1633 74 . . Parts 131 | 12 24 13 . 5 74 3 . . Haulers Intercepted 8 | . 2 . . . 6 . . . Recyclers Shooed 3 | 1 . . . . 2 . . . Parts Field Recycled . | . . . . . . . . . Retrieved Matter . | . . . . . . . . . Parts Self-Destructed . | . . . . . . . . . Prevented . | . . . . . . . . . Parts Restored . | . . . . . . . . . Kills | -11 -10 -10 -10 -9 -8 -7 -7 -7 ------- Run | Yrd Mat Min Exi Min Mat Fac Was Fac Combat Hostiles Destroyed 43 | . 10 4 . 4 24 1 . . Guns 40 | . 10 4 . 4 21 1 . . Cannons 1 | . . . . . 1 . . . AOE 1 | . . . . . 1 . . . Classes Destroyed 10 | 2 4 1 . . 3 . . . Tunneler 4 | 3 . 1 . . . . . . Hauler 8 | . 2 . . . 6 . . . Recycler 3 | 1 . . . . 2 . . . Operator 2 | . 1 . . . 1 . . . Watcher 5 | . . . . . 5 . . . Swarmer 17 | . 6 2 . 4 5 . . . Grunt 15 | . 4 . . . 11 . . . Duelist 1 | . . . . . 1 . . . Sentry 9 | . . 2 . . 6 1 . . Hunter 1 | . . . . . 1 . . . Best Kill Streak 5 | 3 3 2 . 4 5 1 . . Combat Bots Only 4 | . 3 2 . 4 4 1 . . Max Kills in Single Turn 2 | 1 1 1 . 1 2 1 . . Gunslinging 1 | . . . . . 1 . . . Exploded 1 | . . . . . 1 . . . Melee . | . . . . . . . . . Uniques/NPCs Destroyed . | . . . . . . . . . Combat | -11 -10 -10 -10 -9 -8 -7 -7 -7 -------- Run | Yrd Mat Min Exi Min Mat Fac Was Fac Hostile Shots Fired 322 | . 40 28 . 18 85 27 8 116 Missed 101 | . 14 5 . 4 27 6 1 44 Hits 221 | . 26 23 . 14 58 21 7 72 Melee 9 | . . . . . 1 . 7 1 Projectile 212 | . 26 23 . 14 57 21 . 71 Critical Strikes 6 | . . . . . 1 . 3 2 Damage Taken 2839 | . 243 234 . 126 795 108 321 1012 Core 894 | . 41 67 . . 85 10 40 651 Absorbed by Shields 126 | . 9 53 . . . 50 . 14 Core Remaining (%) 80 | 100 . . . 56 84 . . . Volleys Fired 211 | 10 37 13 . 7 118 6 20 . Largest 2 | 2 2 2 . 2 2 2 2 . Hottest 128 | 60 60 46 . 46 128 120 120 . Shots Fired 387 | 20 74 26 . 14 221 10 22 . Gun 361 | 20 74 26 . 14 208 9 10 . Cannon 15 | . . . . . 2 1 12 . Launcher 11 | . . . . . 11 . . . Special . | . . . . . . . . . Kinetic 152 | 10 55 26 . 14 32 5 10 . Thermal 224 | 10 19 . . . 178 5 12 . Explosive . | . . . . . . . . . Electromagnetic 11 | . . . . . 11 . . . Robot Hit Streak 32 | 3 7 14 . 3 22 19 32 . Robot Miss Streak 4 | 3 3 2 . 4 2 . . . Penetration Max . | . . . . . . . . . Secondary Targets 2 | . . 1 . . 1 . . . Max Gunslinging Chain 1 | . . 1 . . 1 . . . Shots Hit Robots 246 | 10 44 19 . 6 145 8 13 1 Core Hits 97 | 5 16 7 . 4 61 2 2 . Critical Kills 2 | . . . . . 1 1 . . Critical Parts Destroyed 2 | . . . . 1 . . 1 . Critical Strikes 17 | . . . . 1 13 2 1 . Burn 13 | . . . . . 12 1 . . Destroy 4 | . . . . 1 1 1 1 . Melee Attacks 9 | . . . . . 1 2 . 6 Impact . | . . . . . . . . . Slashing 9 | . . . . . 1 2 . 6 Piercing . | . . . . . . . . . Sneak Attacks . | . . . . . . . . . Combat Hostiles . | . . . . . . . . . Follow-up Attacks . | . . . . . . . . . Damage Inflicted 4810 | 125 625 290 . 119 2759 179 629 84 Guns 3878 | 125 592 290 . 108 2431 143 189 . Cannons 542 | . . . . . 66 36 440 . Explosions 234 | . . . . . 234 . . . Melee 31 | . . . . . . . . 31 Ramming 125 | . 33 . . 11 28 . . 53 Kinetic 1542 | 79 459 290 . 108 343 74 189 . Thermal 2878 | 46 133 . . . 2154 105 440 . Explosive . | . . . . . . . . . Electromagnetic 234 | . . . . . 234 . . . Impact . | . . . . . . . . . Slashing 31 | . . . . . . . . 31 Piercing . | . . . . . . . . . Highest Corruption 21 | . 1 1 1 1 . . 10 21 Average Corruption 3 | . 1 1 1 1 . . 7 12 Corruption Purged . | . . . . . . . . . Corruption Blocked . | . . . . . . . . . Effects 49 | . 7 4 1 4 . . 10 23 Message Errors 8 | . 1 1 . . . . 1 5 Matter Fused 10 | . 1 1 1 4 . . . 3 Heat Flow Errors 9 | . 2 1 . . . . 2 4 Energy Discharges 6 | . 2 1 . . . . . 3 Data Loss (minor) 7 | . . . . . . . 4 3 Data Loss (major) 3 | . . . . . . . 1 2 Alerts 2 | . 1 . . . . . . 1 Misdirections 4 | . . . . . . . 2 2 Overload Shots . | . . . . . . . . . Overflow Damage . | . . . . . . . . . Projectiles . | . . . . . . . . . Explosions . | . . . . . . . . . Melee . | . . . . . . . . . Knockbacks . | . . . . . . . . . Impact . | . . . . . . . . . Kinetic . | . . . . . . . . . Secondary . | . . . . . . . . . Self-Inflicted Damage 77 | . 10 . . 5 39 . . 23 Shots 3 | . . . . . 3 . . . Rammed 23 | . 4 . . 1 4 . . 14 Targets Rammed 23 | . 4 . . 1 4 . . 14 Kicked . | . . . . . . . . . Crushed . | . . . . . . . . . Highest Temperature 252 | . 219 129 . 16 114 104 180 252 Average Temperature 41 | . 35 20 . 9 21 50 84 92 Received Heat Transfer 440 | . 54 57 . . 261 32 . 36 Siege Activations . | . . . . . . . . . Martial Activations . | . . . . . . . . . Shielding Activations . | . . . . . . . . . Robots Disrupted . | . . . . . . . . . Combat Hostiles . | . . . . . . . . . Robots Corrupted . | . . . . . . . . . Combat Hostiles . | . . . . . . . . . Parts Fried 1 | . . . . . 1 . . . Impact Corruptions . | . . . . . . . . . Robots Melted 1 | . . . . . 1 . . . Combat Hostiles 1 | . . . . . 1 . . . Parts Melted 15 | . . . . . 15 . . . Heat Transferred 7298 | 100 300 . . . 5636 302 960 . Parts Sabotaged . | . . . . . . . . . Parts Stolen . | . . . . . . . . . Parts Stripped . | . . . . . . . . . Power Chain Reactions . | . . . . . . . . . Alert | -11 -10 -10 -10 -9 -8 -7 -7 -7 ------- Run | Yrd Mat Min Exi Min Mat Fac Was Fac Maximum Alert Level . | . . . . . . . . . Low Security (%) 100 | 100 100 100 . 100 100 100 100 100 Level 1 . | . . . . . . . . . Level 2 . | . . . . . . . . . Level 3 . | . . . . . . . . . Level 4 . | . . . . . . . . . Level 5 . | . . . . . . . . . High Security . | . . . . . . . . . Max Security . | . . . . . . . . . Peak Influence 197 | 10 127 53 . 90 197 63 . 96 Initial 63 | . . 27 . . . 63 . . Average 37 | 1 34 8 . 20 63 15 . 16 Influence Increases 1714 | 20 374 115 . 100 889 47 . 169 Destroy 0b10 Robot/C 860 | . 200 80 . 80 480 20 . . Destroy 0b10 Robot/NC 110 | 20 15 5 . . 70 . . . Destroy Leader 196 | . 24 . . 10 152 10 . . Allied During Kill 11 | . . . . 10 1 . . . Successful Hack 60 | . 14 . . . 28 . . 18 Disable Machine 90 | . 15 . . . 60 15 . . Destroy Structure 12 | . 1 . . . 8 2 . 1 Partial Spotted 15 | . . . . . . . . 15 Lose Combat Pursuer 360 | . 105 30 . . 90 . . 135 Influence Decreases 1634 | 20 303 186 . 100 748 188 . 89 Entered New Map 122 | . . 44 . . . 78 . . Time Decay 1342 | 20 303 132 . 100 598 110 . 79 Lost Part 20 | . . 10 . . . . . 10 Purge Threat 150 | . . . . . 150 . . . Squads Dispatched 15 | . 4 . . . 7 . . 4 Investigation 2 | . 1 . . . . . . 1 Extermination 2 | . . . . . . . . 2 Reinforcement 7 | . 3 . . . 3 . . 1 Assault . | . . . . . . . . . Garrison 4 | . . . . . 4 . . . Intercept . | . . . . . . . . . Searches Triggered . | . . . . . . . . . Construction Impeded . | . . . . . . . . . Haulers Reinforced 1 | . . . . . . . . 1 Active Scanning Responses . | . . . . . . . . . Cargo Convoy Interrupts . | . . . . . . . . . Stealth | -11 -10 -10 -10 -9 -8 -7 -7 -7 --------- Run | Yrd Mat Min Exi Min Mat Fac Was Fac Distress Signals 6 | . . . . . 4 . . 2 Communications Jammed . | . . . . . . . . . Distress Signals . | . . . . . . . . . Times Spotted 102 | . 19 9 . 4 41 1 7 21 Peak Tracking Total 12 | . 3 2 . 3 3 1 6 12 Tactical Retreats 20 | . 6 2 . . 5 . 2 5 Traps | -11 -10 -10 -10 -9 -8 -7 -7 -7 ------- Run | Yrd Mat Min Exi Min Mat Fac Was Fac Traps Triggered 11 | . . . . . 5 1 . 5 Indirectly 5 | . . . . . 5 . . . Trap Hack Attempts . | . . . . . . . . . Triggered . | . . . . . . . . . Disarmed . | . . . . . . . . . Reprogrammed . | . . . . . . . . . Reused . | . . . . . . . . . Traps Extracted . | . . . . . . . . . Installed . | . . . . . . . . . Triggered . | . . . . . . . . . Machines | -11 -10 -10 -10 -9 -8 -7 -7 -7 ---------- Run | Yrd Mat Min Exi Min Mat Fac Was Fac Machines Disabled 6 | . 1 . . . 4 1 . . Max in Single Turn 1 | . 1 . . . 1 1 . . Garrison Access 1 | . . . . . 1 . . . Machines Repaired . | . . . . . . . . . Machines Dismantled . | . . . . . . . . . Machines Sabotaged . | . . . . . . . . . Overloaded Fab Kills . | . . . . . . . . . Hacking | -11 -10 -10 -10 -9 -8 -7 -7 -7 --------- Run | Yrd Mat Min Exi Min Mat Fac Was Fac Machines Accessed 20 | . 5 . 4 . 9 . . 2 Terminals 14 | . 5 . . . 7 . . 2 Fabricators . | . . . . . . . . . Repair Stations . | . . . . . . . . . Recycling Units . | . . . . . . . . . Scanalyzers 1 | . . . . . 1 . . . Garrison Access 1 | . . . . . 1 . . . Total Hacks 83 | . 14 . 41 . 24 . . 4 Successful 59 | . 3 . 41 . 14 . . 1 Failed 24 | . 11 . . . 10 . . 3 Catastrophic 5 | . 1 . . . 2 . . 2 Database Lockouts . | . . . . . . . . . Manual 38 | . 14 . 1 . 19 . . 4 Terminals 37 | . 14 . . . 19 . . 4 Fabricators . | . . . . . . . . . Repair Stations . | . . . . . . . . . Recycling Units . | . . . . . . . . . Scanalyzers 3 | . . . . . 3 . . . Garrison Access 2 | . . . . . 2 . . . Terminal Hacks 43 | . . . 41 . 1 . . 1 Record 40 | . . . 40 . . . . . Branch Access Points 1 | . . . . . . . . 1 Unreport Threat 1 | . . . . . 1 . . . Proto ID Catalog 1 | . . . 1 . . . . . Fabricator Hacks . | . . . . . . . . . Repair Station Hacks . | . . . . . . . . . Recycling Unit Hacks . | . . . . . . . . . Scanalyzer 3 | . . . . . 3 . . . Retrieve Study 3 | . . . . . 3 . . . Garrison Access Hacks 1 | . . . . . 1 . . . Seal Access 1 | . . . . . 1 . . . Unauthorized Hacks 12 | . 3 . . . 9 . . . Terminals 12 | . 3 . . . 9 . . . Botnet 3 | . . . . . 3 . . . Skim 9 | . 3 . . . 6 . . . Fabricators . | . . . . . . . . . Repair Stations . | . . . . . . . . . Recycling Units . | . . . . . . . . . Scanalyzers . | . . . . . . . . . Garrison Access . | . . . . . . . . . Data Cores Recovered . | . . . . . . . . . Used . | . . . . . . . . . Hacking Detections 15 | . 5 . . . 9 . . 1 Full Trace Events 2 | . 1 . . . . . . 1 Feedback Events . | . . . . . . . . . Feedback Blocked . | . . . . . . . . . Robot Schematics Acquired . | . . . . . . . . . Robots Built . | . . . . . . . . . Authchips . | . . . . . . . . . Time . | . . . . . . . . . Total Robot Build Rating . | . . . . . . . . . Part Schematics Acquired . | . . . . . . . . . Parts Built . | . . . . . . . . . Authchips . | . . . . . . . . . Time . | . . . . . . . . . Total Part Build Rating . | . . . . . . . . . Part Studies Acquired 3 | . . . . . 3 . . . Parts Repaired . | . . . . . . . . . Time . | . . . . . . . . . Parts Recycled . | . . . . . . . . . Recycled Matter . | . . . . . . . . . Retrieved Matter . | . . . . . . . . . Retrieved Components . | . . . . . . . . . Parts Scanalyzed . | . . . . . . . . . Part Schematics Acquired . | . . . . . . . . . Parts Damaged . | . . . . . . . . . Bothacking | -11 -10 -10 -10 -9 -8 -7 -7 -7 ------------ Run | Yrd Mat Min Exi Min Mat Fac Was Fac Used RIF Installer . | . . . . . . . . . Robots Hacked . | . . . . . . . . . Non-combat . | . . . . . . . . . Combat . | . . . . . . . . . Robot Hacks Applied . | . . . . . . . . . Relay Couplers Released . | . . . . . . . . . Fabnet Peak Effective % . | . . . . . . . . . Robots Rewired . | . . . . . . . . . Allies Hacked . | . . . . . . . . . Hacks Repelled . | . . . . . . . . . Allies | -11 -10 -10 -10 -9 -8 -7 -7 -7 -------- Run | Yrd Mat Min Exi Min Mat Fac Was Fac Total Allies 2 | . . . . 2 . . . . Largest Group 2 | . . . . 2 2 . . . Highest-Rated Group 41 | . . . . 41 41 . . . Highest-Rated Ally 31 | . . . . 31 31 . . . Total Orders . | . . . . . . . . . Ally Attacks 3 | . . . . . 3 . . . Total Damage 40 | . . . . . 40 . . . Kills . | . . . . . . . . . Allies Corrupted . | . . . . . . . . . Allies Melted . | . . . . . . . . . Intel | -11 -10 -10 -10 -9 -8 -7 -7 -7 ------- Run | Yrd Mat Min Exi Min Mat Fac Was Fac Active Infowar (turns) 4221 | 51 1092 591 507 460 453 380 211 476 Optics 21 | . . . . . . . . 21 Terrain 2 | 2 . . . . . . . . Seismic 3152 | 49 1092 591 507 460 453 . . . Machine Analysis 1046 | . . . . . . 380 211 455 Robot Analysis Total . | . . . . . . . . . Derelict Logs Recovered . | . . . . . . . . . Drone Launches . | . . . . . . . . . Drone Recoveries . | . . . . . . . . . Exploration | -11 -10 -10 -10 -9 -8 -7 -7 -7 ------------- Run | Yrd Mat Min Exi Min Mat Fac Was Fac Turns Passed 7138 | 119 1292 894 507 460 2725 381 211 549 Spaces Moved 4345 | 75 750 597 459 367 1096 214 187 600 Core 648 | 10 . . . . . . 157 481 Treads 1664 | . 141 107 . . 1084 214 30 88 Legs . | . . . . . . . . . Wheels 2002 | 65 609 490 459 367 12 . . . Hover . | . . . . . . . . . Flight 31 | . . . . . . . . 31 Fastest Speed 35 | 50 80 110 110 110 110 160 50 35 Average Speed 123 | 83 134 133 110 110 159 160 67 65 Slowest Speed 240 | 100 240 240 110 110 160 160 160 160 Overloaded Moves . | . . . . . . . . . Propulsion Burnouts . | . . . . . . . . . Robots Hopped . | . . . . . . . . . Potential Cave-ins . | . . . . . . . . . Cave-ins Triggered . | . . . . . . . . . Exploration Rate (%) 56 | 5 80 95 91 67 73 4 77 18 Regions Visited 8 Branch Regions 3 Pre-discovered Areas 2 | . . . 1 . 1 . . . Known Exits Taken 1 | . . . . . 1 . . . Unknown Exits Taken 5 | 1 1 1 1 1 . . . . Scrap Searched 3 | . . 1 . 2 . . . . Spaces Dug 4 | . . . . . 1 2 . 1 Terrain Destroyed 4 | . . . . . 1 2 . 1 Melee 4 | . . . . . 1 2 . 1 Projectile . | . . . . . . . . . AOE . | . . . . . . . . . Terrain Rammed . | . . . . . . . . . Walls Destroyed . | . . . . . . . . . Machines Disabled . | . . . . . . . . . Actions | -11 -10 -10 -10 -9 -8 -7 -7 -7 --------- Run | Yrd Mat Min Exi Min Mat Fac Was Fac Total 5708 | 107 974 674 462 412 1856 238 245 740 Wait 872 | 4 124 39 . 36 542 2 15 110 Move 4338 | 74 749 596 458 366 1095 214 186 600 Hop . | . . . . . . . . . Pick Up 60 | 8 25 4 1 1 18 2 1 . Fast Attach 37 | 9 1 2 . . 9 1 11 4 Attach 13 | . 1 1 . . 5 2 3 1 Detach 3 | . . . . . 1 . 1 1 Swap 66 | . 14 10 1 . 31 7 3 . Drop 72 | 2 19 9 2 1 32 2 5 . Fire 211 | 10 37 13 . 7 118 6 20 . Melee 9 | . . . . . 1 2 . 6 Ram 14 | . 3 . . 1 . . . 10 Kick . | . . . . . . . . . Crush 9 | . 1 . . . 4 . . 4 Escape Stasis 4 | . . . . . . . . 4 Rewire . | . . . . . . . . . Trap . | . . . . . . . . . Miscellaneous . | . . . . . . . . . Route ------- -11/Scrapyard -10/Materials (discovered 4 exits: [*Mat x2] / [*Min] / [*Sub]) -10/Mines (discovered 4 exits: [*Mat x2] / *Exi / [*Sub]) -10/Exiles (discovered 2 exits: [*Min x2]) -9/Mines -8/Materials (discovered 3 exits: *Fac x2 / *Sto) -7/Factory -7/Waste -7/Factory (discovered 2 exits: Low x2) History --------- Turn | Location | Event 7 | -11/Scrapyard | Discovered new exit (range 14) 120 | -11/Scrapyard | Entered Materials 285 | -10/Materials | Discovered new exit (range 11) 291 | -10/Materials | Met 8R-AWN 310 | -10/Materials | Build established: Mutant 524 | -10/Materials | Discovered new exit (range 4) 1133 | -10/Materials | Discovered new exit (range 8) 1197 | -10/Materials | Discovered new exit (range 10) 1412 | -10/Materials | Entered Mines 1413 | -10/Mines | Followed 8R-AWN into the Mines 1423 | -10/Mines | Assembled infested the area 1578 | -10/Mines | Found a hidden stash of uninstalled traps 1611 | -10/Mines | Discovered new exit (range 5) 1680 | -10/Mines | Discovered new exit (range 6) 1708 | -10/Mines | Found DCF Scrap (15 items) 1827 | -10/Mines | Discovered new exit (range 12) 2149 | -10/Mines | Discovered new exit (range 6) 2306 | -10/Mines | Entered Exiles 2325 | -10/Exiles | Discovered new exit (range 14) 2355 | -10/Exiles | Welcomed by 8R-AWN 2377 | -10/Exiles | Met EX-HEX 2414 | -10/Exiles | Met EX-BIN 2427 | -10/Exiles | Aligned with FarCom system 2429 | -10/Exiles | Given EX-Vault access code 2454 | -10/Exiles | Opened EX-Vault 2461 | -10/Exiles | Found Gui. Plasma Cannon 2502 | -10/Exiles | Warned to stay clear of 0b10 Research branches 2601 | -10/Exiles | Met EX-DEC 2621 | -10/Exiles | Visited The Gauntlet 2753 | -10/Exiles | Learned location of Zion (-7) 2801 | -10/Exiles | Discovered new exit (range 14) 2813 | -10/Exiles | Left Exiles lab with Gui. Plasma Cannon 2813 | -10/Exiles | Entered Mines 3096 | -9/Mines | Discovered new exit (range 9) 3273 | -9/Mines | Entered Materials 3273 | -8/Materials | Accompanied by 2 allies 3273 | -8/Materials | Evolved 4 slots: Propulsion x2, Utility x2 3278 | -8/Materials | Led the pair of lost Derelicts to an unsafe place 4298 | -8/Materials | Garrison activated, responded to threat 4379 | -8/Materials | Build established: Scavenger-Mutant 4499 | -8/Materials | Garrison activated, responded to threat 5295 | -8/Materials | Discovered new exit (range 8) 5607 | -8/Materials | Discovered new exit (range 10) 5633 | -8/Materials | Discovered new exit (range 6) 5787 | -8/Materials | Learned Storage security intel 5867 | -8/Materials | Learned location of Lower Caves (-7) 5939 | -8/Materials | Learned Storage terminal intel 5985 | -8/Materials | Identified exit to Storage 5996 | -8/Materials | Identified exit to Factory 5998 | -8/Materials | Entered Factory 5998 | -7/Factory | Evolved 2 slots: Propulsion x1, Utility x1 6379 | -7/Factory | Sucked down chute 6379 | -7/Factory | Entered Waste 6389 | -7/Waste | Spotted C-40 Crusher 6394 | -7/Waste | EMP discharged 6411 | -7/Waste | Crushed by Compactor (1 part destroyed, 1 dropped) 6414 | -7/Waste | Crushed by Compactor (1 part destroyed, 1 dropped) 6417 | -7/Waste | Crushed by Compactor (1 part destroyed, 2 dropped) 6420 | -7/Waste | Crushed by Compactor (1 part destroyed, 1 dropped) 6423 | -7/Waste | Crushed by Compactor (1 part destroyed, 1 dropped) 6454 | -7/Waste | Lost 6 parts (4n1u1w) 6476 | -7/Waste | Spotted C-40 Crusher 6494 | -7/Waste | EMP discharged 6494 | -7/Waste | System corruption reached 10% 6496 | -7/Waste | Spotted C-40 Crusher 6527 | -7/Waste | Spotted C-40 Crusher 6534 | -7/Waste | Spotted C-40 Crusher 6568 | -7/Waste | Spotted C-40 Crusher 6570 | -7/Waste | Discovered new exit (range 16) 6575 | -7/Waste | Crushed by Compactor (1 part destroyed, 1 dropped) 6587 | -7/Waste | Crushed by Compactor (1 part destroyed, 1 dropped) 6590 | -7/Waste | Entered Factory 6718 | -7/Factory | Build established: Mutant 6995 | -7/Factory | Lost 3 parts (1n2u) 7094 | -7/Factory | Identified exit to Lower Caves 7097 | -7/Factory | Core integrity fell below 50% 7132 | -7/Factory | Core integrity fell below 20% 7139 | -7/Factory | Destroyed by S-27 Virus with Autogun Last Messages --------------- 07094_ Connecting with Terminal... >>Access(Branch) Found 2 branch access points: (149,146) Lower Caves (42,117) Lower Caves Map updated. 07101_ System corrupted: Heat flow error (+286). 07104_ Penetrated by Slug. 07106_ Slammed into H-55 Commando. 07107_ Destabilizing: System corrupted (+2). 07107_ Slug penetrates Fusion Modulator. 07109_ Triggered Blade Trap. 07109_ Massive razor-sharp blades shoot up from within the floor. 07109_ Adv. Visual Processing Unit severed. 07110_ Slug penetrates Fusion Modulator. 07114_ M-13 Machinist repairs P-60 Hacker Gravmag System. 07117_ System corrupted: Component data lost. 07138_ 1DPW7A,YE>T/W6ZR | | ??????????????????# #??????????????????????? | | ??????????????????# ###########????????????? | | ??????????????????# # ????????????? | | ??????????????????# # """ ""???????????????? | | ??????????????????# + """ ""???????????????? | | ??????????????????# # """ ""???????????????? | | ??????????????????# # ??????????????? | | ??????????????????# # """ """??????????????? | | ??????????????????# # """ """??????????????? | | ??????????????????# # """ ""???????????????? | | ??????????????????# # ??????????????? | | ####??????????????# # ? ???????????????? | | ???????????????# ###????????????????????? | | "" ???????????????# #??????????????????????? | | ""????????????????# s #??????????????????????? | | ""????????????????# #??????????????????????? | | ????############## s #??????????????????????? | | ????# # #??????????????????????? | | ###### """"""""" # #??????????????????????? | | / # #??????????????????????? | | # #### """"""""" # #??????????????????????? | | # #??# # #??????????????????????? | | # #??# """"""""" / +??????????????????????? | | # #??# # #??????????????????????? | +----------------------------------------------------+ Best States ------------- Heat Dissipation 61 Energy Generation 12 Energy Capacity 265 Matter Stores 300 Matter Capacity 300 Sight Range 20 Terrain Scan Density 10 Armor Coverage 225 Evasion (%) 63 Targeting Accuracy 6 Recoil Reduction 5 Offensive Hacking 10 Item Schematics ----------------- None Robot Schematics ------------------ None Fabricated ------------ Nothing Repaired ---------- Nothing Studied --------- Adv. Treads | -8/Materials | Hacked Imp. Treads | -8/Materials | Hacked Lgt. Treads | -8/Materials | Hacked Alien Tech Used ----------------- None Achievements -------------- Follow The Leader Sixth Sense Thread The Needle Around The Corner Challenges ------------ None Game ------ Seed ThiefAntigravDesublimator Manual? 0 Play Time 01:22:44 Cumulative 93.7 hours Start 2025.11.13 @ 02:10:44 End 2025.11.13 @ 03:34:54 Sessions 1 Manual Loads 0 Difficulty Rogue Special Mode None Game No. 83 Rogue 83 Adventurer 0 Explorer 0 Win Type - Total 1 Types 1/0/0/0/0/0/0/0/0/0 Lore% 38 Gallery% 42 Achievement% 34 Wizard Run 0 Options --------- Layout 2 ASCII 0 Keyboard 0 Movement Mouse Keybinds 0 Fullscreen 2 Font 24/Terminus Map View 50x44 Zoom Use 0% Tactical HUD 1 Map Filters NONE Filters NONE Steam 1 RUN: aad1e8c9-d094-4213-8726-b39862f040cb